Cogmind - Beta 15 @@@ ROGUE MODE // 2025.06.28 @ 19:57:48 Player: pyroperro Result: Destroyed by DAS Turret with DAS Cannon Performance ------------- Evolutions (0) 0 Regions Visited (3) 600 Robots Destroyed (34) 170 Value Destroyed (688) 688 Prototype IDs (1) 20 Alien Tech Used (0) 0 Bonus (0) 0 TOTAL SCORE: 1478 Bonus ------- None Cogmind --------- Core Integrity 0/250 Matter 157/300 Energy 84/100 System Corruption 1% Temperature Cool (0) Movement Flying (40) Location -10/Exiles Parts ------- > --- POWER (1) -------- (None) > --- PROPULSION (2) --- Flight Unit > --- UTILITY (2) ------ Visual Processing Unit > --- WEAPON (2) ------- (None) > --- INVENTORY (5) ---- Light Fission Core Flight Unit Faulty Experimental Sensor Array Thief Drone Bay (3/3) Peak State ------------ > --- POWER ------------ Light Nuclear Core > --- PROPULSION ------- Light Treads Light Treads > --- UTILITY ---------- Medium Storage Unit Thief Drone Bay > --- WEAPON ----------- Heavy Assault Rifle Grenade Launcher > --- INVENTORY -------- Light Ion Engine Compact Wheel Flight Unit Flight Unit Flight Unit Flight Unit Flight Unit Visual Processing Unit Tractor Beam Mini Grenade Launcher [Rating: 17] Favorites ----------- Power Light Nuclear Core Engine Light Ion Engine Power Core Light Nuclear Core Propulsion Light Treads Treads Light Treads Wheel Compact Wheel Flight Unit Flight Unit Utility Medium Storage Unit Device Tractor Beam Storage Medium Storage Unit Processor Visual Processing Unit Weapon Heavy Assault Rifle Ballistic Gun Heavy Assault Rifle Launcher Grenade Launcher Build | -11 -10 -10 -10 ------- Run | Yrd Mat Min Exi Slots Evolved . | . . . . Power . | . . . . Propulsion . | . . . . Utility . | . . . . Weapon . | . . . . Parts Attached 28 | 6 9 9 4 Power 4 | 1 1 2 . Engine 3 | 1 1 1 . Core 1 | . . 1 . Reactor . | . . . . Propulsion 10 | 2 2 2 4 Treads 5 | 2 2 1 . Leg . | . . . . Wheel 1 | . . 1 . Hover . | . . . . Flight 4 | . . . 4 Utility 6 | 1 3 2 . Device 3 | . 2 1 . Storage 2 | 1 1 . . Processor 1 | . . 1 . Hackware . | . . . . Protection . | . . . . Artifact . | . . . . Weapon 8 | 2 3 3 . Energy Gun . | . . . . Energy Cannon . | . . . . Ballistic Gun 5 | 2 2 1 . Ballistic Cannon . | . . . . Launcher 3 | . 1 2 . Special Weapon . | . . . . Impact Weapon . | . . . . Slashing Weapon . | . . . . Piercing Weapon . | . . . . Special Melee Weapon . | . . . . Unidentified Prototypes 1 | . . 1 . Parts Lost 11 | . . 3 8 Power 2 | . . 1 1 Propulsion 6 | . . 1 5 Utility . | . . . . Weapon 3 | . . 1 2 Highest Loss Streak 8 | . . 2 8 To Critical Strikes 2 | . . . 2 Average Backups 8 | 1 6 9 8 Power 1 | . 1 1 . Propulsion 3 | . 2 5 4 Utility 1 | . . 1 2 Weapon 1 | . 2 1 . Tool/Special . | . . . . Unused Backups 7 | . . 4 3 Power 2 | . . 1 1 Propulsion 3 | . . 2 1 Utility 1 | . . . 1 Weapon 1 | . . 1 . Tool/Special . | . . . . Average Slot Usage (%) 94 | . 94 96 77 Engine 6 | . 14 1 10 Core 7 | . . 12 . Treads 26 | . 28 26 10 Device 7 | . 9 7 . Storage 13 | . 14 14 10 Processor 4 | . . 6 14 Ballistic Gun 19 | . 23 18 10 Launcher 5 | . 4 6 3 Peak Build Rating 17 | 6 10 17 12 Average Rating 10 | 5 8 11 9 On Entrance 6 | . 6 10 10 Naked Turns . | . . . . Heaviest Build 22 | 12 22 22 20 Greatest Support 40 | 40 40 40 16 Greatest Overweight (x) 3 | 3 . . 1 Average Overweight (x) . | . . . . Largest Inventory Capacity 10 | 8 10 10 10 Average Capacity 9 | 7 8 10 9 Most Carried 10 | 2 10 10 10 Average Carried 8 | 1 6 9 8 Final Capacity 10 | 8 10 10 5 Final Carried 9 | 2 9 9 4 Class Distribution -------------------- 53% | Scavenger-Mutant 46% | Mutant Dominant Class ---------------- Mutant | -10/Materials Scavenger-Mutant | -10/Mines Scavenger-Mutant | -10/Exiles Resources | -11 -10 -10 -10 ----------- Run | Yrd Mat Min Exi Matter Collected 872 | 272 272 328 . Remotely 413 | . 190 223 . Salvage Created 770 | 70 389 290 21 Parts 53 | 2 24 27 . Haulers Intercepted 1 | . 1 . . Recyclers Shooed . | . . . . Parts Field Recycled . | . . . . Retrieved Matter . | . . . . Parts Self-Destructed . | . . . . Prevented . | . . . . Kills | -11 -10 -10 -10 ------- Run | Yrd Mat Min Exi Combat Hostiles Destroyed 30 | . 11 15 4 Guns 17 | . 7 10 . AOE 13 | . 4 5 4 Classes Destroyed 8 | 1 6 . 1 Worker 3 | . 1 2 . Builder 1 | . 1 . . Hauler 1 | . 1 . . Recycler 1 | 1 . . . Watcher 2 | . 2 . . Swarmer 14 | . 3 11 . Grunt 12 | . 8 4 . Assembled 4 | . . . 4 Best Kill Streak 4 | 1 4 4 4 Combat Bots Only 4 | . 3 3 4 Max Kills in Single Turn 4 | 1 2 2 4 Gunslinging . | . . . . Exploded 4 | . 1 2 4 Melee . | . . . . Uniques/NPCs Destroyed . | . . . . Combat | -11 -10 -10 -10 -------- Run | Yrd Mat Min Exi Hostile Shots Fired 150 | . 34 74 42 Missed 49 | . 7 24 18 Hits 101 | . 27 50 24 Projectile 101 | . 27 50 24 Critical Strikes 6 | . . 2 4 Damage Taken 1398 | . 290 701 407 Core 260 | . 42 62 156 Absorbed by Shields . | . . . . Core Remaining (%) 100 | 100 . . . Volleys Fired 72 | 2 28 40 2 Largest 2 | 2 2 2 2 Hottest 56 | 40 53 56 56 Shots Fired 122 | 4 55 59 4 Gun 106 | 4 49 50 3 Cannon . | . . . . Launcher 16 | . 6 9 1 Special . | . . . . Kinetic 106 | 4 49 50 3 Thermal . | . . . . Explosive 16 | . 6 9 1 Electromagnetic . | . . . . Robot Hit Streak 8 | 3 8 4 2 Robot Miss Streak 5 | . 5 3 1 Penetration Max . | . . . . Secondary Targets 1 | . . 1 . Max Gunslinging Chain 1 | . . 1 . Shots Hit Robots 70 | 3 32 33 2 Core Hits 51 | 2 18 23 8 Critical Kills . | . . . . Critical Parts Destroyed . | . . . . Critical Strikes . | . . . . Melee Attacks . | . . . . Impact . | . . . . Slashing . | . . . . Piercing . | . . . . Sneak Attacks . | . . . . Combat Hostiles . | . . . . Follow-up Attacks . | . . . . Damage Inflicted 2305 | 35 1100 902 268 Guns 994 | 35 457 468 34 Cannons . | . . . . Explosions 1311 | . 643 434 234 Melee . | . . . . Ramming . | . . . . Kinetic 994 | 35 457 468 34 Thermal . | . . . . Explosive 1311 | . 643 434 234 Electromagnetic . | . . . . Impact . | . . . . Slashing . | . . . . Piercing . | . . . . Highest Corruption 1 | . 1 1 1 Average Corruption 1 | . 1 1 1 Corruption Purged . | . . . . Corruption Blocked . | . . . . Effects 10 | . . 8 2 Message Errors 3 | . . 2 1 Matter Fused 2 | . . 2 . Heat Flow Errors 1 | . . 1 . Data Loss (minor) 1 | . . 1 . Data Loss (major) 1 | . . 1 . Misfires 2 | . . 1 1 Overload Shots . | . . . . Overflow Damage 113 | . 100 10 3 Projectiles . | . . . . Explosions 113 | . 100 10 3 Melee . | . . . . Knockbacks . | . . . . Impact . | . . . . Kinetic . | . . . . Secondary . | . . . . Self-Inflicted Damage 164 | . . 164 . Shots 6 | . . 6 . Rammed . | . . . . Targets Rammed . | . . . . Kicked . | . . . . Crushed . | . . . . Highest Temperature 292 | . 5 292 . Average Temperature 82 | . 2 98 . Received Heat Transfer 342 | . 120 222 . Siege Activations . | . . . . Martial Activations . | . . . . Shielding Activations . | . . . . Robots Disrupted . | . . . . Combat Hostiles . | . . . . Robots Corrupted . | . . . . Combat Hostiles . | . . . . Parts Fried . | . . . . Impact Corruptions . | . . . . Robots Melted . | . . . . Combat Hostiles . | . . . . Parts Melted . | . . . . Heat Transferred . | . . . . Parts Sabotaged . | . . . . Parts Stolen . | . . . . Parts Stripped . | . . . . Power Chain Reactions . | . . . . Alert | -11 -10 -10 -10 ------- Run | Yrd Mat Min Exi Maximum Alert Level 1 | . 1 1 . Low Security (%) 91 | 100 82 95 . Level 1 8 | . 17 4 . Level 2 . | . . . . Level 3 . | . . . . Level 4 . | . . . . Level 5 . | . . . . High Security . | . . . . Max Security . | . . . . Peak Influence 245 | 5 245 214 . Initial 48 | . . 48 . Average 100 | . 114 103 . Influence Increases 982 | 5 430 547 . Destroy 0b10 Robot/C 520 | . 220 300 . Destroy 0b10 Robot/NC 40 | 5 25 10 . Destroy Leader 116 | . 56 60 . Trap Triggered on 0b10 10 | . . 10 . Successful Hack 5 | . . 5 . Disable Machine 60 | . 30 30 . Destroy Structure 126 | . 69 57 . Lose Combat Pursuer 105 | . 30 75 . Influence Decreases 982 | 5 306 538 133 Entered New Map 209 | . . 76 133 Time Decay 743 | 5 306 432 . Lost Part 30 | . . 30 . Squads Dispatched 2 | . 2 . . Investigation 2 | . 2 . . Extermination . | . . . . Reinforcement . | . . . . Assault . | . . . . Garrison . | . . . . Intercept . | . . . . Searches Triggered . | . . . . Construction Impeded . | . . . . Haulers Reinforced . | . . . . Active Scanning Responses . | . . . . Cargo Convoy Interrupts . | . . . . Stealth | -11 -10 -10 -10 --------- Run | Yrd Mat Min Exi Distress Signals 2 | . 2 . . Communications Jammed . | . . . . Distress Signals . | . . . . Times Spotted 46 | . 14 22 10 Peak Tracking Total 10 | . 4 4 10 Tactical Retreats 5 | . 1 3 1 Traps | -11 -10 -10 -10 ------- Run | Yrd Mat Min Exi Traps Triggered 2 | . 2 . . Indirectly . | . . . . Trap Hack Attempts . | . . . . Triggered . | . . . . Disarmed . | . . . . Reprogrammed . | . . . . Reused 1 | . . 1 . Traps Extracted . | . . . . Installed 1 | . . 1 . Triggered 1 | . . 1 . Machines | -11 -10 -10 -10 ---------- Run | Yrd Mat Min Exi Machines Disabled 6 | . 2 2 2 Max in Single Turn 1 | . 1 1 1 Machines Repaired . | . . . . Machines Dismantled . | . . . . Machines Sabotaged . | . . . . Overloaded Fab Kills . | . . . . Hacking | -11 -10 -10 -10 --------- Run | Yrd Mat Min Exi Machines Accessed 4 | . 2 2 . Terminals 3 | . 2 1 . Fabricators . | . . . . Repair Stations . | . . . . Recycling Units . | . . . . Scanalyzers . | . . . . Garrison Access . | . . . . Total Hacks 8 | . 4 4 . Successful 5 | . 2 3 . Failed 3 | . 2 1 . Catastrophic . | . . . . Database Lockouts . | . . . . Manual . | . . . . Terminals 7 | . 4 3 . Fabricators . | . . . . Repair Stations . | . . . . Recycling Units . | . . . . Scanalyzers . | . . . . Garrison Access . | . . . . Terminal Hacks 5 | . 2 3 . Record 3 | . 2 1 . Open Door 1 | . . 1 . Zone Layout 1 | . . 1 . Fabricator Hacks . | . . . . Repair Station Hacks . | . . . . Recycling Unit Hacks . | . . . . Scanalyzer . | . . . . Garrison Access Hacks . | . . . . Unauthorized Hacks . | . . . . Terminals . | . . . . Fabricators . | . . . . Repair Stations . | . . . . Recycling Units . | . . . . Scanalyzers . | . . . . Garrison Access . | . . . . Data Cores Recovered . | . . . . Used . | . . . . Hacking Detections 3 | . 2 1 . Full Trace Events 2 | . 1 1 . Feedback Events . | . . . . Feedback Blocked . | . . . . Robot Schematics Acquired . | . . . . Robots Built . | . . . . Authchips . | . . . . Time . | . . . . Total Robot Build Rating . | . . . . Part Schematics Acquired . | . . . . Parts Built . | . . . . Authchips . | . . . . Time . | . . . . Total Part Build Rating . | . . . . Parts Repaired . | . . . . Time . | . . . . Parts Recycled . | . . . . Recycled Matter . | . . . . Retrieved Matter . | . . . . Retrieved Components . | . . . . Parts Scanalyzed . | . . . . Part Schematics Acquired . | . . . . Parts Damaged . | . . . . Bothacking | -11 -10 -10 -10 ------------ Run | Yrd Mat Min Exi Used RIF Installer . | . . . . Robots Hacked . | . . . . Non-combat . | . . . . Combat . | . . . . Robot Hacks Applied . | . . . . Relay Couplers Released . | . . . . Fabnet Peak Effective % . | . . . . Robots Rewired . | . . . . Allies Hacked . | . . . . Hacks Repelled . | . . . . Allies | -11 -10 -10 -10 -------- Run | Yrd Mat Min Exi Total Allies . | . . . . Largest Group . | . . . . Highest-Rated Group . | . . . . Highest-Rated Ally . | . . . . Total Orders . | . . . . Ally Attacks . | . . . . Total Damage . | . . . . Kills . | . . . . Allies Corrupted . | . . . . Allies Melted . | . . . . Intel | -11 -10 -10 -10 ------- Run | Yrd Mat Min Exi Active Infowar (turns) 945 | . 236 588 121 Optics 709 | . . 588 121 Seismic 236 | . 236 . . Robot Analysis Total . | . . . . Derelict Logs Recovered 1 | . . 1 . Drone Launches . | . . . . Drone Recoveries . | . . . . Exploration | -11 -10 -10 -10 ------------- Run | Yrd Mat Min Exi Turns Passed 2190 | 132 733 1204 121 Spaces Moved 1228 | 74 380 631 143 Core 14 | 14 . . . Treads 1043 | 60 380 603 . Legs . | . . . . Wheels 112 | . . 28 84 Hover . | . . . . Flight 59 | . . . 59 Fastest Speed 37 | 50 160 100 37 Average Speed 148 | 157 160 157 74 Slowest Speed 200 | 200 160 160 115 Overloaded Moves . | . . . . Propulsion Burnouts . | . . . . Robots Hopped . | . . . . Potential Cave-ins . | . . . . Cave-ins Triggered . | . . . . Exploration Rate (%) 48 | 4 51 95 43 Regions Visited 3 Branch Regions 2 Pre-discovered Areas 1 | . . 1 . Known Exits Taken . | . . . . Unknown Exits Taken 3 | 1 1 1 . Scrap Searched 1 | . . 1 . Spaces Dug . | . . . . Terrain Destroyed 167 | . 70 97 . Melee . | . . . . Projectile . | . . . . AOE 167 | . 70 97 . Terrain Rammed . | . . . . Walls Destroyed . | . . . . Machines Disabled . | . . . . Actions | -11 -10 -10 -10 --------- Run | Yrd Mat Min Exi Total 1475 | 83 449 788 155 Wait 90 | . 11 79 . Move 1225 | 73 379 630 143 Hop . | . . . . Pick Up 23 | 2 8 12 1 Fast Attach 14 | 6 6 1 1 Attach 8 | . 1 2 5 Detach 3 | . 2 1 . Swap 15 | . 7 8 . Drop 24 | . 7 14 3 Fire 72 | 2 28 40 2 Melee . | . . . . Ram . | . . . . Kick . | . . . . Crush . | . . . . Escape Stasis . | . . . . Rewire . | . . . . Trap 1 | . . 1 . Miscellaneous . | . . . . Route ------- -11/Scrapyard -10/Materials (discovered 3 exits: [*Mat x2] / *Min) -10/Mines (discovered 4 exits: [*Mat x2] / *Exi / [*Sub]) -10/Exiles (discovered 2 exits: *Min x2) History --------- Turn | Location | Event 21 | -11/Scrapyard | Discovered new exit (range 15) 133 | -11/Scrapyard | Entered Materials 214 | -10/Materials | Discovered new exit (range 5) 306 | -10/Materials | Build established: Mutant 323 | -10/Materials | Discovered new exit (range 4) 700 | -10/Materials | Discovered new exit (range 11) 866 | -10/Materials | Entered Mines 905 | -10/Mines | Discovered new exit (range 6) 987 | -10/Mines | Joined a pair of Derelicts in attacking an 0b10 outpost 1271 | -10/Mines | Found a hidden stash of uninstalled traps 1307 | -10/Mines | Build established: Scavenger-Mutant 1472 | -10/Mines | Found the Drone Emporium 1479 | -10/Mines | Found Prototype Device 1480 | -10/Mines | Identified Thief Drone Bay 1540 | -10/Mines | Received a Rocket Launcher from a helpful Derelict 1651 | -10/Mines | Learned location of Storage (-7) 1701 | -10/Mines | Discovered new exit (range 7) 1840 | -10/Mines | Discovered new exit (range 10) 1899 | -10/Mines | Deemed a non-threat by the Exiles lab entrance 1899 | -10/Mines | Discovered new exit (range 5) 1955 | -10/Mines | Found a damaged Exp. Sensor Array with a note attached 1958 | -10/Mines | Found Prototype Device 2070 | -10/Mines | Entered Exiles 2071 | -10/Exiles | Identified exit to Mines 2125 | -10/Exiles | Met 8R-AWN 2144 | -10/Exiles | Met EX-HEX 2152 | -10/Exiles | Attacked by the Exiles 2160 | -10/Exiles | Core integrity fell below 50% 2191 | -10/Exiles | Destroyed by DAS Turret with DAS Cannon Last Messages --------------- Lgt. Treads destroyed. Com. Wheel destroyed. Flight Unit destroyed. Dropped Tractor Beam. HV Slug penetrates Machine. Machine disabled. HV Slug penetrates Machine. Dropped Med. Storage Unit. Penetrated by HV Slug. Lgt. Ion Engine destroyed. Connecting with BIN's Terminal... Current location identified: Exiles Rocket Launcher destroyed. Penetrated by HV Slug. Machine disabled. Flight Unit destroyed. HV Slug penetrates Machine. Machine disabled. HV Slug penetrates Machine. Flight Unit destroyed. Map ----- +----------------------------------------------------+ | ??????????????????????????????# #????????????? | | ??????????????????????????????# #??""""""????? | | ??????????????????????????????# #??"""""""???? | | ??????????????????????????????# #?#"""""""???? | | ?????????????????????????????## ###"" """"#??? | | ?????????????????????????????#" """"#??? | | ?????????????????????????????#" """#??? | | ?????????????????????????????#" """#??? | | ?????????????????????????????#" """#??? | | ?????????????????????????????#" """#??? | | ?????????????????????????????#" """##?? | | ?????????????????????????????## """""?? | | ??????????????????????????????# """##?? | | ??????????????????????????????#" "X" """""?? | | ??????????????????????????????#" """ # ?? | | ??????????????????????????????#" """""""""#??? | | ?????????????????????????????##" ###########??? | | ????????????????#???????????##"" #????????????? | | ??????????????#?# ?##??######"" #????????????? | | ??????????#####X# #"###""""""" ##???????????? | | ?????????? """""" " "" ##???######## | | ????????? "" """ " aa #####""""""" | | ????????? " " " """ " | | ???????? "" | | ???????? " | | ???????? @% | | ???????? | | ?????????" | | ??????????"" """" | | ?????????" ######""" | | ?????????? " ##????#####"" !! | | ??????????" "" ##?????????##""" | | ?????????? """#????????????#"""" | | ??????????? ""?????????????# | | ??????????? #????????????#"""" | | ???????????? ??????????????" | | ????????????t ?????????????? | | ???????????? ???????????????? | | ????????????? ????????????????? | | ???????????????? ?????????????????? " | | ??????????????????????????????????? "" """ | | ?????????????????????????????????????"" " " ""#" | | ??????????????????????????????????????##""" """##" | | ???????????????????????????????????????###"""???## | | ?????????????????????????????????????????##??????? | | ?????????????????????????????????????????????????? | | ?????????????????????????????????????????????????? | | ?????????????????????????????????????????????????? | | ?????????????????????????????????????????????????? | | ?????????????????????????????????????????????????? | +----------------------------------------------------+ Best States ------------- Heat Dissipation 25 Energy Generation 14 Energy Capacity 250 Matter Stores 300 Matter Capacity 300 Sight Range 18 Terrain Scan Density 10 Evasion (%) 62 Recoil Reduction 2 Item Schematics ----------------- None Robot Schematics ------------------ None Fabricated ------------ Nothing Repaired ---------- Nothing Alien Tech Used ----------------- None Achievements -------------- Maybe Next Time I'll Detach My Launcher Use The Force Challenges ------------ None Game ------ Seed PitchforkAmuletMediator Manual? 0 Play Time 00:24:18 Cumulative 3.6 hours Start 2025.06.28 @ 19:34:09 End 2025.06.28 @ 19:57:48 Sessions 1 Manual Loads 0 Difficulty Rogue Special Mode None Game No. 5 Rogue 5 Adventurer 0 Explorer 0 Win Type - Total 0 Types 0/0/0/0/0/0/0/0/0/0 Lore% 4 Gallery% 7 Achievement% 12 Wizard Run 0 Options --------- Layout 2 ASCII 0 Keyboard 0 Movement Mouse Keybinds 0 Fullscreen 1 Font 24/Smallcaps Map View 50x44 Zoom Use 0% Tactical HUD 0 Map Filters NONE Filters NONE Steam 1 RUN: fa278f24-4060-4093-98bc-448b4f22a7fa